fUST/lending_fUST_20250827
["ID","MTS","AMOUNT","RATE_DAILY","PERIOD"]
[381518277,1756246238477,-1000.0,0.00027989,2]
[381518279,1756246238486,-654.0,0.00027989,2]
[381518281,1756246238496,-202.31733087,0.00027989,2]
[381518283,1756246238505,-500.0,0.00027989,2]
[381518285,1756246238515,-500.0,0.00027989,2]
[381518287,1756246238524,-151.58853822,0.00027989,2]
[381518289,1756246238534,-500.0,0.00027989,2]
[381518291,1756246238543,-151.0,0.00027989,2]
[381518293,1756246238553,-151.0,0.00027989,2]
[381518295,1756246238562,-151.0,0.00027989,2]
[381518297,1756246238572,-151.54982774,0.00027989,2]
[381518299,1756246238581,-500.0,0.00027989,2]
[381518301,1756246238591,-189.84344737,0.00027989,2]
[381518303,1756246238600,-151.0,0.00027989,2]
[381518305,1756246238608,-500.0,0.00027989,2]
[381518307,1756246238617,-151.0,0.00027989,2]
[381518309,1756246238627,-500.0,0.00027989,2]
[381518311,1756246238636,-44963.823795,0.0002799,2]
[381518313,1756246238645,-299.854675,0.0002799,7]
[381518314,1756246238655,-299.854675,0.0002799,7]
[381518316,1756246238663,-299.854675,0.0002799,7]
[381518318,1756246238673,-151.0,0.0002799,7]
[381518320,1756246238682,-299.854675,0.0002799,7]
[381518322,1756246238692,-151.0,0.0002799,7]
[381518324,1756246238701,-151.0,0.0002799,7]
[381518326,1756246238710,-151.0,0.0002799,7]
[381518328,1756246238719,-151.0,0.0002799,7]
[381518330,1756246238728,-156.36125,0.0002799,7]
[381518332,1756246238738,-151.0,0.0002799,7]
[381518334,1756246238748,-151.0,0.0002799,7]
[381518336,1756246238758,-151.0,0.0002799,7]
[381518338,1756246238767,-183.467516,0.0002799,7]
[381518340,1756246238777,-151.000001,0.0002799,7]
[381518342,1756246238786,-178.675523,0.0002799,7]
[381518344,1756246238796,-178.675523,0.0002799,7]
[381518346,1756246238805,-178.675523,0.0002799,7]
[381518348,1756246238814,-178.675523,0.0002799,7]
[381518351,1756246238826,-151.0,0.0002799,7]
[381518353,1756246238835,-151.0,0.0002799,7]
[381518354,1756246238845,-151.0,0.0002799,7]
[381518356,1756246238854,-576.267024,0.0002799,7]
[381518358,1756246238864,-576.267024,0.0002799,7]
[381518360,1756246238873,-151.0,0.0002799,7]
[381518362,1756246238883,-151.0,0.0002799,7]
[381518364,1756246238892,-576.267024,0.0002799,7]
[381518366,1756246238902,-576.267024,0.0002799,7]
[381518368,1756246238911,-6686.73704363,0.00028,2]
[381518370,1756246238922,-2774.15,0.00028,7]
[381518373,1756246238931,-66843.63,0.00028,7]
[381518374,1756246238941,-151.0,0.00028,7]
[381518376,1756246238951,-151.0,0.00028,7]
[381518378,1756246238961,-151.0,0.00028,7]
[381518380,1756246238971,-151.0,0.00028,7]
[381518382,1756246238980,-151.0,0.00028,7]
[381518384,1756246238989,-151.0,0.00028,7]
[381518386,1756246239001,-151.0,0.00028,7]
[381518388,1756246239011,-151.0,0.00028,7]
[381518390,1756246239022,-151.0,0.00028,7]
[381518392,1756246239031,-151.0,0.00028,7]
[381518394,1756246239041,-151.0,0.00028,7]
[381518396,1756246239051,-165.229524,0.00028,7]
[381518398,1756246239060,-249.199771,0.00028,7]
[381518400,1756246239070,-67.58908316,0.00028,7]
[381518403,1756246239085,-83.41091684,0.00028,7]
[381518405,1756246239095,-151.0,0.00028,7]
[381518406,1756246239105,-245.069521,0.00028,7]
[381518408,1756246239115,-151.0,0.00028,7]
[381518410,1756246239124,-151.0,0.00028,7]
[381518412,1756246239133,-217.18350301,0.00028,7]
[381518414,1756246239142,-931.049624,0.00028,7]
[381518416,1756246239151,-931.049624,0.00028,7]
[381518418,1756246239161,-151.785022,0.00028,7]
[381518420,1756246239171,-151.0,0.00028,7]
[381518422,1756246239181,-931.049624,0.00028,7]
[381518424,1756246239190,-151.0,0.00028,7]
[381518426,1756246239199,-931.049624,0.00028,7]
[381518428,1756246239209,-308.677419,0.00028,7]
[381518430,1756246239218,-151.0,0.00028,7]
[381518432,1756246239228,-308.677419,0.00028,7]
[381518434,1756246239237,-183.070018,0.00028,7]
[381518436,1756246239247,-287.861439,0.00028,7]
[381518438,1756246239257,-194.519437,0.00028,7]
[381518441,1756246239268,-308.677419,0.00028,7]
[381518443,1756246239279,-183.070018,0.00028,7]
[381518444,1756246239288,-308.677419,0.00028,7]
[381518446,1756246239298,-183.070018,0.00028,7]
[381518448,1756246239308,-183.070018,0.00028,7]
[381518450,1756246239317,-151.0,0.00028,7]
[381518452,1756246239327,-263.295605,0.00028,7]
[381518454,1756246239336,-263.295605,0.00028,7]
[381518456,1756246239346,-263.295605,0.00028,7]
[381518458,1756246239355,-263.295605,0.00028,7]
[381518460,1756246239365,-151.0,0.00028,7]
[381518462,1756246239374,-151.0,0.00028,7]
[381518464,1756246239384,-151.0,0.00028,7]
[381518466,1756246239393,-151.0,0.00028,7]
[381518469,1756246239402,-151.0,0.00028,7]
[381518470,1756246239412,-204.839988,0.00028,7]
[381518471,1756246239422,-151.0,0.00028,7]
[381518472,1756246239431,-425.33923475,0.00028,7]
[381518473,1756246239440,-216.09257821,0.00028,7]
[381518474,1756246239450,-4981.67130314,0.00028025,2]
[381518475,1756246239459,-299.854675,0.00028068,7]
[381518476,1756246239468,-299.854675,0.00028068,7]
[381518477,1756246239478,-299.854675,0.00028068,7]
[381518478,1756246239487,-151.0,0.00028068,7]
[381518479,1756246239496,-299.854675,0.00028068,7]
[381518480,1756246239506,-151.0,0.00028068,7]
[381518481,1756246239515,-151.0,0.00028068,7]
[381518482,1756246239524,-151.0,0.00028068,7]
[381518483,1756246239534,-151.0,0.00028068,7]
[381518484,1756246239543,-151.0,0.00028068,7]
[381518485,1756246239552,-151.0,0.00028068,7]
[381518486,1756246239561,-151.0,0.00028068,7]
[381518487,1756246239570,-178.675523,0.00028068,7]
[381518489,1756246239579,-178.675523,0.00028068,7]
[381518491,1756246239589,-178.675523,0.00028068,7]
[381518492,1756246239598,-178.675523,0.00028068,7]
[381518493,1756246239607,-151.0,0.00028068,7]
[381518494,1756246239616,-151.0,0.00028068,7]
[381518495,1756246239626,-166.058228,0.00028068,7]
[381518496,1756246239635,-576.267024,0.00028068,7]
[381518497,1756246239644,-576.267024,0.00028068,7]
[381518498,1756246239654,-151.0,0.00028068,7]
[381518499,1756246239664,-151.0,0.00028068,7]
[381518500,1756246239673,-576.267024,0.00028068,7]
[381518501,1756246239683,-576.267024,0.00028068,7]
[381518502,1756246239692,-4981.67130314,0.0002815,2]
[381518503,1756246239702,-152.303452,0.0002815,7]
[381518504,1756246239711,-151.0,0.0002815,7]
[381518505,1756246239721,-151.0,0.0002815,7]
[381518506,1756246239731,-151.0,0.0002815,7]
[381518507,1756246239740,-151.0,0.0002815,7]
[381518508,1756246239749,-270.0,0.00028163,2]
[381518509,1756246239759,-654.0,0.00028263,2]
[381518510,1756246239768,-500.0,0.00028263,2]
[381518511,1756246239777,-500.0,0.00028263,2]
[381518512,1756246239788,-500.0,0.00028263,2]
[381518513,1756246239797,-151.0,0.00028263,2]
[381518515,1756246239806,-151.0,0.00028263,2]
[381518516,1756246239816,-500.0,0.00028263,2]
[381518517,1756246239826,-151.0,0.00028263,2]
[381518519,1756246239835,-500.0,0.00028263,2]
[381518521,1756246239845,-151.0,0.00028263,2]
[381518523,1756246239856,-4981.67130314,0.00028275,2]
[381518525,1756246239866,-151.0,0.000283,15]
[381518527,1756246239875,-151.0,0.00028358,7]
[381518529,1756246239886,-151.0,0.00028358,7]
[381518531,1756246239896,-218.512318,0.00028358,7]
[381518533,1756246239906,-151.0,0.00028358,7]
[381518535,1756246239915,-218.512318,0.00028358,7]
[381518537,1756246239925,-151.0,0.00028358,7]
[381518540,1756246240132,-151.0,0.00028358,7]
[381518541,1756246240142,-218.512318,0.00028358,7]
[381518542,1756246240153,-218.512318,0.00028358,7]
[381518543,1756246240162,-151.0,0.00028358,7]
[381518544,1756246240171,-151.0,0.00028358,7]
[381518545,1756246240181,-203.087484,0.00028358,7]
[381518546,1756246240190,-151.0,0.00028358,7]
[381518547,1756246240200,-203.087484,0.00028358,7]
[381518548,1756246240209,-203.087484,0.00028358,7]
[381518549,1756246240218,-203.087484,0.00028358,7]
[381518550,1756246240227,-4981.67130314,0.000284,2]
[381518551,1756246240236,-151.0,0.00028409,7]
[381518552,1756246240246,-151.0,0.00028409,7]
[381518553,1756246240255,-151.0,0.00028409,7]
[381518554,1756246240264,-151.0,0.00028409,7]
[381518555,1756246240273,-151.0,0.00028409,7]
[381518556,1756246240282,-151.0,0.00028409,7]
[381518557,1756246240292,-151.0,0.00028409,7]
[381518558,1756246240301,-151.0,0.00028409,7]
[381518559,1756246240311,-192.117156,0.00028409,7]
[381518560,1756246240321,-192.117156,0.00028409,7]
[381518561,1756246240330,-192.117156,0.00028409,7]
[381518562,1756246240339,-192.117156,0.00028409,7]
[381518563,1756246240349,-151.0,0.00028409,7]
[381518564,1756246240360,-151.0,0.00028409,7]
[381518565,1756246240371,-151.0,0.00028409,7]
[381518566,1756246240380,-151.0,0.00028409,7]
[381518567,1756246240389,-151.0,0.00028409,7]
[381518568,1756246240399,-151.0,0.00028409,7]
[381518569,1756246240409,-151.0,0.00028409,7]
[381518570,1756246240418,-263.097212,0.00028409,7]
[381518571,1756246240428,-151.0,0.00028409,7]
[381518572,1756246240437,-151.0,0.00028409,7]
[381518573,1756246240446,-163.32284,0.00028409,7]
[381518574,1756246240456,-163.32284,0.00028409,7]
[381518575,1756246240466,-163.32284,0.00028409,7]
[381518576,1756246240476,-163.32284,0.00028409,7]
[381518577,1756246240486,-151.0,0.00028409,7]
[381518578,1756246240495,-151.924413,0.00028409,7]
[381518579,1756246240505,-151.0,0.00028409,7]
[381518580,1756246240514,-273.016024,0.00028409,7]
[381518581,1756246240523,-273.016024,0.00028409,7]
[381518582,1756246240532,-273.016024,0.00028409,7]
[381518583,1756246240542,-273.016024,0.00028409,7]
[381518584,1756246240551,-151.0,0.00028409,7]
[381518585,1756246240560,-182.20936,0.00028409,7]
[381518586,1756246240569,-182.20936,0.00028409,7]
[381518587,1756246240580,-325.01315,0.00028409,7]
[381518588,1756246240589,-182.20936,0.00028409,7]
[381518589,1756246240598,-325.01315,0.00028409,7]
[381518590,1756246240608,-182.20936,0.00028409,7]
[381518591,1756246240617,-325.01315,0.00028409,7]
[381518592,1756246240628,-325.01315,0.00028409,7]
[381518593,1756246240637,-151.0,0.00028409,7]
[381518594,1756246240646,-151.0,0.00028409,7]
[381518595,1756246240655,-500.0,0.00028421,5]
[381518596,1756246240664,-500.0,0.00028421,5]
[381518597,1756246240674,-988.21088667,0.00028421,5]
[381518598,1756246240683,-834.21974476,0.00028421,5]
[381518599,1756246240693,-151.0,0.00028439,2]
[381518600,1756246240702,-151.0,0.00028439,2]
[381518601,1756246240712,-500.0,0.00028439,2]
[381518602,1756246240721,-151.0,0.00028439,2]
[381518603,1756246240730,-151.0,0.00028439,2]
[381518604,1756246240741,-151.0,0.00028439,2]
[381518605,1756246240751,-151.0,0.00028439,2]
[381518606,1756246240760,-151.0,0.00028439,2]
[381518607,1756246240770,-151.0,0.00028439,2]
[381518608,1756246240779,-74.82755407,0.00028439,2]
[381518615,1756246241939,-76.17244593,0.00028439,2]
[381518616,1756246241949,-151.0,0.00028439,2]
[381518617,1756246241958,-202.18674825,0.00028443,2]
[381518618,1756246241974,-597.81325175,0.00028443,2]
[381518619,1756246241983,-151.0,0.00028448,2]
[381518620,1756246241993,-151.0,0.00028448,2]
[381518621,1756246242006,-151.0,0.00028448,7]
[381518622,1756246242016,-154.340157,0.00028448,7]
[381518623,1756246242025,-151.0,0.00028448,7]
[381518624,1756246242034,-208.027802,0.00028448,7]
[381518625,1756246242044,-151.0,0.00028448,7]
[381518626,1756246242053,-151.0,0.00028448,7]
[381518627,1756246242063,-151.0,0.00028448,7]
[381518628,1756246242073,-151.0,0.00028448,7]
[381518629,1756246242083,-192.117156,0.00028448,7]
[381518630,1756246242092,-192.117156,0.00028448,7]
[381518631,1756246242102,-192.117156,0.00028448,7]
[381518632,1756246242111,-192.117156,0.00028448,7]
[381518633,1756246242121,-151.0,0.00028448,7]
[381518634,1756246242130,-151.0,0.00028448,7]
[381518635,1756246242139,-151.0,0.00028448,7]
[381518636,1756246242148,-151.0,0.00028448,7]
[381518637,1756246242158,-151.0,0.00028448,7]
[381518638,1756246242168,-151.0,0.00028448,7]
[381518639,1756246242177,-151.0,0.00028448,7]
[381518640,1756246242187,-151.0,0.00028448,7]
[381518641,1756246242196,-245.09762,0.00028448,7]
[381518642,1756246242205,-163.32284,0.00028448,7]
[381518643,1756246242214,-163.32284,0.00028448,7]
[381518644,1756246242224,-163.32284,0.00028448,7]
[381518645,1756246242235,-163.32284,0.00028448,7]
[381518646,1756246242246,-151.0,0.00028448,7]
[381518647,1756246242255,-151.0,0.00028448,7]
[381518648,1756246242267,-273.016024,0.00028448,7]
[381518649,1756246242276,-273.016024,0.00028448,7]
[381518650,1756246242286,-273.016024,0.00028448,7]
[381518651,1756246242295,-273.016024,0.00028448,7]
[381518652,1756246242304,-151.0,0.00028448,7]
[381518653,1756246242313,-151.0,0.00028448,7]
[381518654,1756246242324,-182.20936,0.00028448,7]
[381518655,1756246242333,-151.0,0.00028448,7]
[381518656,1756246242344,-182.20936,0.00028448,7]
[381518657,1756246242353,-325.01315,0.00028448,7]
[381518658,1756246242362,-182.20936,0.00028448,7]
[381518659,1756246242373,-325.01315,0.00028448,7]
[381518662,1756246242382,-182.20936,0.00028448,7]
[381518664,1756246242392,-325.01315,0.00028448,7]
[381518666,1756246242402,-325.01315,0.00028448,7]
[381518668,1756246242411,-167.707309,0.00028448,7]
[381518670,1756246242421,-218.512318,0.00028448,7]
[381518672,1756246242432,-151.0,0.00028448,7]
[381518674,1756246242441,-218.512318,0.00028448,7]
[381518675,1756246242450,-151.0,0.00028448,7]
[381518676,1756246242459,-163.879448,0.00028448,7]
[381518677,1756246242469,-218.512318,0.00028448,7]
[381518678,1756246242478,-218.512318,0.00028448,7]
[381518680,1756246242487,-151.0,0.00028448,7]
[381518681,1756246242497,-151.0,0.00028448,7]
[381518682,1756246242506,-203.087484,0.00028448,7]
[381518684,1756246242515,-244.381061,0.00028448,7]
[381518686,1756246242524,-203.087484,0.00028448,7]
[381518688,1756246242533,-203.087484,0.00028448,7]
[381518689,1756246242543,-203.087484,0.00028448,7]
[381518690,1756246242552,-151.0,0.00028448,7]
[381518691,1756246242561,-151.0,0.00028448,7]
[381518692,1756246242571,-151.0,0.00028448,7]
[381518693,1756246242580,-151.0,0.00028448,7]
[381518694,1756246242589,-151.0,0.00028448,7]
[381518695,1756246242599,-151.0,0.00028448,7]
[381518696,1756246242608,-151.0,0.00028448,7]
[381518697,1756246242617,-151.0,0.00028448,7]
[381518698,1756246242626,-151.0,0.00028448,7]
[381518699,1756246242636,-151.0,0.00028448,7]
[381518700,1756246242645,-151.0,0.00028448,7]
[381518701,1756246242654,-151.0,0.00028448,7]
[381518702,1756246242663,-151.0,0.00028448,7]
[381518703,1756246242672,-151.0,0.00028448,7]
[381518704,1756246242682,-151.0,0.00028448,7]
[381518705,1756246242691,-151.0,0.00028448,7]
[381518706,1756246242700,-151.0,0.00028448,7]
[381518707,1756246242710,-151.0,0.00028448,7]
[381518708,1756246242719,-151.0,0.00028448,7]
[381518709,1756246242728,-151.0,0.00028448,7]
[381518711,1756246242737,-151.0,0.00028448,7]
[381518712,1756246242746,-151.0,0.00028448,7]
[381518714,1756246242755,-249.199771,0.00028448,7]
[381518716,1756246242765,-151.0,0.00028448,7]
[381518718,1756246242774,-151.0,0.00028448,7]
[381518720,1756246242783,-151.0,0.00028448,7]
[381518721,1756246242793,-151.0,0.00028448,7]
[381518722,1756246242802,-151.0,0.00028448,7]
[381518723,1756246242811,-151.0,0.00028448,7]
[381518724,1756246242821,-151.0,0.00028448,7]
[381518725,1756246242832,-151.0,0.00028448,7]
[381518726,1756246242841,-217.18350301,0.00028448,7]
[381518727,1756246242850,-1000.0,0.00028448,2]
[381518728,1756246242859,-1000.0,0.00028448,2]
[381518729,1756246242869,-1000.0,0.00028448,2]
[381518730,1756246242878,-1000.0,0.00028448,2]
[381518732,1756246242888,-1000.0,0.00028448,2]
[381518735,1756246242897,-564.25674924,0.00028448,2]
[381518756,1756246363235,2890.80697958,0.000199,2]
[381518757,1756246363357,2890.80697948,0.00021627,2]
[381518758,1756246363492,2890.80697948,0.00023353,2]
[381518759,1756246363599,1327.58906146,0.0002508,2]
[381518760,1756246363628,1563.21791802,0.0002508,2]
[381518761,1756246386702,296.8111467,0.000252,2]
[381518762,1756246504414,-215.47372884,0.000253,2]
[381518763,1756246506215,-190.644576,0.000253,2]
[381518764,1756246508404,-160.0,0.000253,2]
[381518765,1756246511263,-379.21316085,0.000253,2]
[381518766,1756246513470,-152.0,0.000253,2]
[381518767,1756246518183,-156.96,0.000253,2]
[381518768,1756246521532,-160.75679804,0.000253,2]
[381518769,1756246524244,-204.57689282,0.000253,2]
[381518770,1756246526889,-251.02283608,0.000253,2]
[381518771,1756246529427,-129.35200737,0.000253,2]
[381518772,1756246529449,-26.48799263,0.00026396,2]
[381518773,1756246532198,-260.29113035,0.00026396,2]
[381518774,1756246538863,2774.22787148,0.000199,2]
[381518775,1756246538988,2774.22787129,0.00021627,2]
[381518776,1756246539122,2774.22787129,0.00023353,2]
[381518777,1756246539222,1677.32638594,0.0002508,2]
[381518778,1756246539251,1096.90148535,0.0002508,2]
[381518779,1756246706699,-220.86239382,0.00026574,2]
[381518780,1756246708917,-16.13480218,0.00026574,2]
[381518781,1756246717221,2517.57954574,0.000199,2]
[381518782,1756246717287,2517.57954546,0.00021627,2]
[381518783,1756246717346,2517.57954546,0.00023353,2]
[381518784,1756246717414,2447.27136334,0.0002508,2]
[381518785,1756246717442,70.30818212,0.0002508,2]
[381518786,1756246751816,-240.87807954,0.00026533,2]
[381518787,1756246755449,-20.93342146,0.00026533,2]
[381518788,1756246835070,-2517.57954546,0.00026806,6]
[381518789,1756246835103,-613.61726282,0.00026989,2]
[381518790,1756246835132,-500.0,0.00026989,2]
[381518791,1756246835164,-500.0,0.00026989,2]
[381518792,1756246835200,-500.0,0.00026989,2]
[381518793,1756246835232,-136.74993109,0.00026989,2]
[381518794,1756246835502,-464.11652126,0.00026989,2]
[381518795,1756246845124,-308.70337655,0.00026989,2]
[381518796,1756246845548,-3801.05988112,0.0002699,2]
[381518797,1756246845596,-10000.01,0.0002699,2]
[381518798,1756246848323,-10000.01,0.0002699,2]
[381518799,1756246848896,-10000.01,0.0002699,2]
[381518800,1756246850965,160.0,0.0002,3]
[381518801,1756246851715,160.0,0.0002,3]
[381518802,1756246902459,2260.17585734,0.000199,2]
[381518803,1756246902568,2260.17585721,0.00021627,2]
[381518804,1756246902705,2260.17585721,0.00023353,2]
[381518805,1756246902818,2260.17585721,0.0002508,2]
[381518806,1756246931157,-178.06657854,0.00026472,2]
[381518807,1756246935312,-2.06875246,0.00026472,2]
[381518808,1756247096246,2038.7066966,0.000199,2]
[381518809,1756247096337,2038.70669658,0.00021627,2]
[381518810,1756247096502,2038.70669658,0.00023353,2]
[381518811,1756247096648,2038.70669658,0.0002508,2]
[381518812,1756247143115,-181.016598,0.00026806,6]
[381518813,1756247143144,-1976.21562969,0.00026806,6]
[381518814,1756247222359,-185.14443571,0.00025778,2]
[381518815,1756247224779,-173.48406566,0.00025778,2]
[381518816,1756247226751,-223.71890665,0.00025778,2]
[381518817,1756247232412,-152.0,0.00025778,2]
[381518818,1756247236313,-81.08610898,0.00025778,2]
[381518819,1756247236336,-217.5503815,0.00026044,2]
[381518820,1756247239898,-186.5637155,0.00026044,2]
[381518821,1756247240119,-81.81575968,0.00026044,2]
[381518822,1756247240148,-62.49106689,0.00026806,6]
[381518823,1756247240169,-8.1779371,0.0002699,2]
[381518824,1756247240190,-300.0,0.00027141,2]
[381518825,1756247240213,-702.93121558,0.00027141,2]
[381518826,1756247271430,10000.01,0.00018,2]
[381518827,1756247271455,10000.01,0.00018,2]
[381518828,1756247271480,10000.01,0.00018,2]
[381518829,1756247271505,10000.01,0.00018,2]
[381518830,1756247271529,10000.01,0.00018,2]
[381518831,1756247271554,10000.01,0.00018,2]
[381518832,1756247271579,10000.01,0.00018,2]
[381518833,1756247271604,9050.29612414,0.00018,2]
[381518834,1756247279209,949.71387586,0.000199,2]
[381518835,1756247279466,945.74838437,0.000199,2]
[381518836,1756247279612,1895.46226007,0.00021627,2]
[381518837,1756247280046,1895.46226007,0.00023353,2]
[381518838,1756247280090,1895.46226007,0.0002508,2]
[381518839,1756247280497,558.46456141,0.000252,2]
[381518840,1756247281412,2809.41027401,0.00024774,2]
[381518841,1756247281436,1386.27240859,0.00024774,2]
[381518842,1756247288345,5000.0,0.000252,2]
[381518843,1756247313780,763.08931204,0.0002,2]
[381518844,1756247314128,6319.95114102,0.00025,2]
[381518845,1756247315763,2916.96954694,0.00017,2]
[381518846,1756247315787,10000.01,0.00017,2]
[381518847,1756247315812,7896.38735736,0.00017,2]
[381518848,1756247316071,2103.62264264,0.000252,2]
[381518849,1756247316097,2097.24063905,0.000252,2]
[381518850,1756247317951,317.28364551,0.00025,2]
[381518851,1756247317974,3570.89200248,0.00025,2]
[381518852,1756247318236,4331.87735847,0.0002,2]
[381518853,1756247318258,5698.15078502,0.0002,2]
[381518854,1756247318411,4301.85921498,0.00025,2]
[381518855,1756247318434,10000.01,0.00025,2]
[381518856,1756247318457,10000.01,0.00025,2]
[381518857,1756247318479,10000.01,0.00025,2]
[381518858,1756247318502,10000.01,0.00025,2]
[381518859,1756247318525,10000.01,0.00025,2]
[381518860,1756247318548,10000.01,0.00025,2]
[381518861,1756247318570,8566.31985702,0.00025,2]
[381518862,1756247326063,69790.87289039,0.0002465,2]
[381518863,1756247326861,2429.79431273,0.0002,2]
[381518864,1756247328052,7210.28768832,0.00019063,2]
[381518865,1756247331374,5000.0,0.000252,2]
[381518866,1756247339877,312.03953109,0.000252,2]
[381518867,1756247343498,-199.0,0.00025999,2]
[381518868,1756247345798,-101.0,0.00025999,2]
[381518869,1756247345822,-199.0,0.00026,30]
[381518870,1756247347962,5000.0,0.000252,2]
[381518871,1756247348128,-15423.33435824,0.00026,30]
[381518872,1756247348156,-1895.46226007,0.00026806,6]
[381518873,1756247348178,-294.57874169,0.0002703,2]
[381518874,1756247363199,421.19394088,0.000252,2]
[381518875,1756247370261,541.304929,0.00013699,2]
[381518876,1756247370498,541.304929,0.00020187,2]
[381518947,1756247438061,-541.304929,0.00026676,2]
[381518948,1756247438071,-265.11851211,0.0002703,2]
[381518949,1756247438080,-497.06878442,0.00027141,2]
[381518951,1756247438090,-300.0,0.00027141,2]
[381518953,1756247438100,-2841.6833278,0.00027142,2]
[381518954,1756247438110,-1302.6578625,0.00027142,2]
[381518956,1756247438119,-1000.0,0.000275,2]
[381518957,1756247438130,-1000.0,0.000275,2]
[381518958,1756247438141,-319.47844829,0.000275,2]
[381518959,1756247438151,-177.87405026,0.00027549,2]
[381518960,1756247438161,-4602.92133488,0.0002755,2]
[381518961,1756247438172,-500.0,0.0002757,20]
[381518962,1756247438181,-500.0,0.0002757,5]
[381518963,1756247438190,-500.0,0.0002757,5]
[381518964,1756247438201,-500.0,0.0002757,5]
[381518965,1756247438211,-808.09322906,0.00027679,2]
[381518966,1756247438220,-4798.22624636,0.0002769,2]
[381518967,1756247438229,-865.12,0.00027769,3]
[381518968,1756247438238,-432.56,0.00027769,3]
[381518969,1756247438247,-216.28,0.00027769,3]
[381518970,1756247438258,-648.88,0.00027769,3]
[381518971,1756247438267,-216.81,0.00027769,10]
[381518972,1756247438276,-180.67,0.00027769,10]
[381518973,1756247438286,-464.55093652,0.00027773,5]
[381518974,1756247438295,-500.0,0.00027773,5]
[381518975,1756247438304,-500.0,0.00027773,5]
[381518976,1756247438313,-379.00846514,0.00027773,5]
[381518977,1756247438322,-312.96112754,0.00027778,2]
[381518978,1756247438335,-566.53980125,0.00027778,2]
[381518979,1756247438344,-566.53980125,0.00027778,2]
[381518980,1756247438353,-566.53980125,0.00027778,2]
[381518981,1756247438362,-566.53980125,0.00027778,2]
[381518982,1756247438371,-566.53980125,0.00027778,2]
[381518983,1756247438382,-566.53980125,0.00027778,2]
[381518984,1756247438391,-566.53980125,0.00027778,2]
[381518985,1756247438400,-566.53980125,0.00027778,2]
[381518986,1756247438411,-566.53980125,0.00027778,2]
[381518987,1756247438421,-566.53980125,0.00027778,2]
[381518988,1756247438430,-566.53980125,0.00027778,2]
[381518989,1756247438439,-24.38836882,0.00027778,2]
[381518990,1756247438451,-542.15143243,0.00027778,2]
[381518991,1756247438460,-566.53980125,0.00027778,2]
[381518992,1756247438469,-17726.32864423,0.00027779,2]
[381519006,1756247440193,-776.770389,0.00027779,2]
[381519010,1756247440344,-281.47923363,0.00027779,2]
[381519031,1756247440597,-77.04138475,0.00027779,2]
[381519033,1756247440608,-328.42957638,0.00027779,2]
[381519319,1756247443661,-150.56,0.00027769,10]
[381519320,1756247443670,-89.13246974,0.00027779,2]
[381520538,1756247456425,2899.61959099,0.000199,2]
[381520547,1756247456498,2899.61959091,0.00021627,2]
[381520564,1756247456656,2899.61959091,0.00023353,2]
[381520579,1756247456789,2899.61959091,0.0002508,2]
[381523908,1756247538699,4504.31971865,0.000252,2]
[381523909,1756247585286,-256.91723267,0.0002521,5]
[381523910,1756247590147,-65.69528576,0.0002521,5]
[381523911,1756247590169,-284.54226434,0.000253,2]